bitfinex/quotes_BTCUSD_20251208
["timestamp","ask_amount","ask_price","bid_price","bid_amount"]
[1765173337221,0.01519,91392.0,91381.0,0.01978319]
[1765173337380,0.01519,91392.0,91391.0,0.00323436]
[1765173337795,0.21883731,91393.0,91391.0,0.00323436]
[1765173339116,0.21883731,91393.0,91391.0,0.00023436]
[1765173339565,0.21983731,91393.0,91391.0,0.00323436]
[1765173339780,0.21983731,91393.0,91391.0,0.00023436]
[1765173339981,0.21983731,91393.0,91391.0,0.00123436]
[1765173350932,0.01522,91392.0,91391.0,0.00123436]
[1765173351267,0.21983731,91393.0,91391.0,0.00123436]
[1765173351628,0.21983731,91393.0,91391.0,0.00128984]
[1765173351828,0.21883731,91393.0,91391.0,0.00028984]
[1765173352028,0.21883731,91393.0,91391.0,0.00128984]
[1765173352029,0.001,91392.0,91391.0,0.00128984]
[1765173352341,0.001,91392.0,91391.0,0.00028984]
[1765173352732,0.001,91392.0,91391.0,0.00128984]
[1765173353447,0.21883752,91393.0,91391.0,0.00028984]
[1765173353783,0.21983752,91393.0,91391.0,0.00028984]
[1765173354185,0.001,91393.0,91391.0,0.00028984]
[1765173354334,0.001,91393.0,91391.0,0.02369984]
[1765173354574,0.001,91393.0,91391.0,0.24253856]
[1765173354775,0.001,91393.0,91391.0,0.24353856]
[1765173355039,0.001,91393.0,91391.0,0.24253856]
[1765173355425,0.001,91393.0,91391.0,0.24353856]
[1765173356389,0.001,91393.0,91391.0,0.22012856]
[1765173356827,0.001,91393.0,91391.0,0.00128984]
[1765173357612,0.21983712,91393.0,91391.0,0.00128984]
[1765173358685,0.0165,91392.0,91391.0,0.00128984]
[1765173358902,0.04023,91392.0,91391.0,0.00128984]
[1765173359329,0.05751,91392.0,91391.0,0.00128984]
[1765173359707,0.05751,91392.0,91391.0,0.00028984]
[1765173360104,0.05851,91392.0,91391.0,0.00028984]
[1765173360302,0.03478,91392.0,91391.0,0.00028984]
[1765173360511,0.01828,91392.0,91391.0,0.00028984]
[1765173361039,0.03478,91392.0,91391.0,0.00128984]
[1765173362427,0.001,91392.0,91391.0,0.00128984]
[1765173363716,0.001,91392.0,91391.0,0.22012976]
[1765173363921,0.001,91392.0,91391.0,0.00128984]
[1765173364911,0.001,91392.0,91391.0,0.25930976]
[1765173365309,0.001,91392.0,91391.0,0.00128984]
[1765173375442,0.001,91392.0,91391.0,0.22012976]
[1765173375784,0.001,91392.0,91391.0,0.26080976]
[1765173376087,0.001,91392.0,91391.0,0.23650976]
[1765173379039,0.001,91392.0,91391.0,0.01766984]
[1765173379243,0.001,91392.0,91391.0,0.23650976]
[1765173380941,0.001,91392.0,91391.0,0.00128984]
[1765173381205,0.21983753,91392.0,91391.0,0.00128984]
[1765173381383,0.23647753,91392.0,91391.0,0.00128984]
[1765173381584,0.25949753,91392.0,91391.0,0.00128984]
[1765173381769,0.27677753,91392.0,91391.0,0.00128984]
[1765173382371,0.42867913,91392.0,91391.0,0.00128984]
[1765173382569,0.69475614,91392.0,91391.0,0.00128984]
[1765173383379,0.69475614,91392.0,91391.0,0.00028984]
[1765173384066,0.69375614,91392.0,91391.0,0.00028984]
[1765173384269,0.69775614,91392.0,91391.0,0.00028984]
[1765173384919,0.69675614,91392.0,91391.0,0.00028984]
[1765173385122,0.69975614,91392.0,91391.0,0.00028984]
[1765173392183,0.8094612,91392.0,91391.0,0.00028984]
[1765173393384,0.68949651,91392.0,91391.0,0.00028984]
[1765173396429,0.69973645,91392.0,91391.0,0.00028984]
[1765173397469,0.69973637,91392.0,91391.0,0.00028984]
[1765173404930,0.710681,91392.0,91391.0,0.00028984]
[1765173405147,0.73428135,91392.0,91391.0,0.00028984]
[1765173405342,0.84398641,91392.0,91391.0,0.00028984]
[1765173409383,0.82670641,91392.0,91391.0,0.00028984]
[1765173409589,0.84398641,91392.0,91391.0,0.00028984]
[1765173410198,0.84098641,91392.0,91391.0,0.00028984]
[1765173410597,0.84498641,91392.0,91391.0,0.00028984]
[1765173410828,0.82770641,91392.0,91391.0,0.00028984]
[1765173411027,0.71800135,91392.0,91391.0,0.00028984]
[1765173411227,0.73528135,91392.0,91391.0,0.00028984]
[1765173411501,0.73228135,91392.0,91391.0,0.00028984]
[1765173411881,0.73728135,91392.0,91391.0,0.00028984]
[1765173414944,0.72000135,91392.0,91391.0,0.00028984]
[1765173415261,0.73728135,91392.0,91391.0,0.00028984]
[1765173415563,0.72000135,91392.0,91391.0,0.00028984]
[1765173415725,0.73728135,91392.0,91391.0,0.00028984]
[1765173416063,0.85483648,91392.0,91391.0,0.00028984]
[1765173416358,0.81973126,91392.0,91391.0,0.00028984]
[1765173419941,0.80245126,91392.0,91391.0,0.00028984]
[1765173420152,0.81973126,91392.0,91391.0,0.00028984]
[1765173422264,0.31228237,91392.0,91391.0,0.00028984]
[1765173422437,0.26909753,91392.0,91391.0,0.00028984]
[1765173422637,0.35914878,91392.0,91391.0,0.00028984]
[1765173422841,0.38134477,91392.0,91391.0,0.00028984]
[1765173423247,0.24447753,91392.0,91391.0,0.00028984]
[1765173423393,0.24440753,91392.0,91391.0,0.00028984]
[1765173423593,0.26902753,91392.0,91391.0,0.00028984]
[1765173423845,0.26402753,91392.0,91391.0,0.00028984]
[1765173424045,0.26002753,91392.0,91391.0,0.00028984]
[1765173424252,0.26302753,91392.0,91391.0,0.00028984]
[1765173428159,0.28522352,91392.0,91391.0,0.00028984]
[1765173428367,0.32555052,91392.0,91391.0,0.00028984]
[1765173428562,0.37544715,91392.0,91391.0,0.00028984]
[1765173429278,0.36502651,91392.0,91391.0,0.00028984]
[1765173429481,0.38845114,91392.0,91391.0,0.00028984]
[1765173432797,0.37117114,91392.0,91391.0,0.00028984]
[1765173433030,0.38845114,91392.0,91391.0,0.00028984]
[1765173437442,0.68925515,91392.0,91391.0,0.00028984]
[1765173437617,0.85499504,91392.0,91391.0,0.00028984]
[1765173438115,0.83771504,91392.0,91391.0,0.00028984]
[1765173438319,0.85499504,91392.0,91391.0,0.00028984]
[1765173440745,0.85299504,91392.0,91391.0,0.00028984]
[1765173440953,0.85199504,91392.0,91391.0,0.00028984]
[1765173441156,0.85399504,91392.0,91391.0,0.00028984]
[1765173441339,0.85599504,91392.0,91391.0,0.00028984]
[1765173441918,0.85599616,91392.0,91391.0,0.00028984]
[1765173451221,0.83871616,91392.0,91391.0,0.00028984]
[1765173451428,0.7462911,91392.0,91391.0,0.00028984]
[1765173452379,0.4060111,91392.0,91391.0,0.00028984]
[1765173452596,0.3996938,91392.0,91391.0,0.00028984]
[1765173452797,0.7226938,91392.0,91391.0,0.00028984]
[1765173452994,0.7462911,91392.0,91391.0,0.00028984]
[1765173453843,0.81020287,91392.0,91391.0,0.00028984]
[1765173454056,0.79292287,91392.0,91391.0,0.00028984]
[1765173454227,0.68321781,91392.0,91391.0,0.00028984]
[1765173454443,0.70049781,91392.0,91391.0,0.00028984]
[1765173454619,0.37749781,91392.0,91391.0,0.00028984]
[1765173456715,0.3996938,91392.0,91391.0,0.00028984]
[1765173458067,0.37749781,91392.0,91391.0,0.00028984]
[1765173458272,0.3996938,91392.0,91391.0,0.00028984]
[1765173460971,0.37749781,91392.0,91391.0,0.00028984]
[1765173463015,0.36725515,91392.0,91391.0,0.00028984]
[1765173463341,0.34263515,91392.0,91391.0,0.00028984]
[1765173463495,0.30264052,91392.0,91391.0,0.00028984]
[1765173463708,0.31448052,91392.0,91391.0,0.00028984]
[1765173464295,0.23811753,91392.0,91391.0,0.00028984]
[1765173464493,0.23611753,91392.0,91391.0,0.00028984]
[1765173464699,0.23811753,91392.0,91391.0,0.00028984]
[1765173466057,0.22083753,91392.0,91391.0,0.00028984]
[1765173466262,0.23811753,91392.0,91391.0,0.00028984]
[1765173469680,0.22083753,91392.0,91391.0,0.00028984]
[1765173469926,0.23811753,91392.0,91391.0,0.00028984]
[1765173474167,0.31710052,91392.0,91391.0,0.00028984]
[1765173474367,0.44710403,91392.0,91391.0,0.00028984]
[1765173474614,0.47996991,91392.0,91391.0,0.00028984]
[1765173475042,0.49021005,91392.0,91391.0,0.00028984]
[1765173476256,0.40588253,91392.0,91391.0,0.00028984]
[1765173476430,0.36640654,91392.0,91391.0,0.00028984]
[1765173476634,0.38368654,91392.0,91391.0,0.00028984]
[1765173477844,0.36640654,91392.0,91391.0,0.00028984]
[1765173478048,0.40588253,91392.0,91391.0,0.00028984]
[1765173480355,0.79761402,91392.0,91391.0,0.00028984]
[1765173480693,0.84342379,91392.0,91391.0,0.00028984]
[1765173481924,0.71302032,91392.0,91391.0,0.00028984]
[1765173482068,0.73030032,91392.0,91391.0,0.00028984]
[1765173482410,0.67382066,91392.0,91391.0,0.00028984]
[1765173482853,0.69601665,91392.0,91391.0,0.00028984]
[1765173484138,0.67382066,91392.0,91391.0,0.00028984]
[1765173484325,0.69601665,91392.0,91391.0,0.00028984]
[1765173484555,0.35082066,91392.0,91391.0,0.00028984]
[1765173484903,0.37301665,91392.0,91391.0,0.00028984]
[1765173491801,0.37301665,91392.0,91373.0,0.22982563]
[1765173491802,0.22981256,91379.0,91373.0,0.22982563]
[1765173492120,0.01094295,91383.0,91375.0,0.01094391]
[1765173492121,0.21886787,91380.0,91375.0,0.01094391]
[1765173492298,0.01094343,91379.0,91378.0,0.01632]
[1765173492465,0.01094343,91379.0,91376.0,0.01094379]
[1765173492669,0.01094343,91379.0,91378.0,0.02543]
[1765173493473,0.02822331,91380.0,91378.0,0.02543]
[1765173493669,0.02822331,91380.0,91379.0,0.01632]
[1765173493923,0.02822331,91380.0,91379.0,0.03976]
[1765173496762,0.02822331,91380.0,91379.0,0.04476]
[1765173498501,0.02822331,91380.0,91379.0,0.02132]
[1765173499001,0.02822331,91380.0,91379.0,0.00535163]
[1765173499978,0.02822331,91380.0,91379.0,0.00035163]
[1765173500586,0.02822331,91380.0,91379.0,0.00435163]
[1765173503292,0.02822331,91380.0,91379.0,0.02067163]
[1765173503497,0.01728,91380.0,91379.0,0.04411163]
[1765173506484,0.01728,91380.0,91379.0,0.02067163]
[1765173507205,0.01728,91380.0,91379.0,0.04411163]
[1765173508378,0.01728,91380.0,91379.0,0.02067163]
[1765173508920,0.01728,91380.0,91379.0,0.04411163]
[1765173509335,0.22978556,91390.0,91385.0,0.22979635]
[1765173509489,0.01728,91390.0,91387.0,0.22979024]
[1765173509690,0.01728,91390.0,91389.0,0.02708]
[1765173510094,0.01728,91390.0,91389.0,0.05052]
[1765173510431,0.01094187,91392.0,91389.0,0.05052]
[1765173510773,0.01928,91390.0,91389.0,0.01076]
[1765173511471,0.01928,91390.0,91389.0,0.05052]
[1765173511939,0.01928,91390.0,91389.0,0.05063516]
[1765173512135,0.01728,91390.0,91389.0,0.05063516]
[1765173512433,0.01928,91390.0,91389.0,0.05063516]
[1765173513022,0.01728,91390.0,91389.0,0.05063516]
[1765173513194,0.01828,91390.0,91389.0,0.05063516]
[1765173513408,0.01828,91390.0,91389.0,0.05163516]
[1765173516466,0.01828,91390.0,91389.0,0.27047987]
[1765173516849,0.001,91390.0,91389.0,0.27047987]
[1765173518530,0.001,91390.0,91389.0,0.26947987]
[1765173518702,0.01728,91394.0,91393.0,0.21883514]
[1765173518991,0.01728,91394.0,91393.0,0.23515514]
[1765173519176,0.01728,91394.0,91393.0,0.25859514]
[1765173519972,0.01828,91394.0,91393.0,0.25859514]
[1765173520156,0.01828,91394.0,91393.0,0.25959514]
[1765173520606,0.01828,91394.0,91393.0,0.04076]
[1765173521312,0.01828,91394.0,91393.0,0.01732]
[1765173521516,0.01828,91394.0,91393.0,0.04076]
[1765173521746,0.001,91394.0,91393.0,0.01732]
[1765173522390,0.001,91394.0,91393.0,0.001]
[1765173522391,0.02894,91394.0,91393.0,0.001]
[1765173522537,0.05378,91394.0,91393.0,0.001]
[1765173523435,0.07597599,91394.0,91393.0,0.001]
[1765173523647,0.05378,91394.0,91393.0,0.001]
[1765173526552,0.01278,91394.0,91393.0,0.001]
[1765173539994,0.001,91394.0,91393.0,0.001]
[1765173550081,0.04169,91394.0,91393.0,0.001]
[1765173550275,0.06388599,91394.0,91393.0,0.001]
[1765173550664,0.04169,91394.0,91393.0,0.001]
[1765173556541,0.01741,91394.0,91393.0,0.001]
[1765173556750,0.001,91394.0,91393.0,0.001]
[1765173556947,0.01648,91394.0,91393.0,0.001]
[1765173557465,0.04041,91394.0,91393.0,0.001]
[1765173560745,0.01648,91394.0,91393.0,0.001]
[1765173564868,0.02795,91394.0,91393.0,0.001]
[1765173566669,0.01247,91394.0,91393.0,0.001]
[1765173567352,0.0364,91394.0,91393.0,0.001]
[1765173568010,0.20421261,91394.0,91393.0,0.001]
[1765173568209,0.13542641,91394.0,91393.0,0.001]
[1765173568370,0.11325641,91394.0,91393.0,0.001]
[1765173569061,0.13718641,91394.0,91393.0,0.001]
[1765173569296,0.15266641,91394.0,91393.0,0.001]
[1765173569657,0.11325641,91394.0,91393.0,0.001]
[1765173574464,0.02202342,91394.0,91393.0,0.001]
[1765173574662,0.001,91394.0,91393.0,0.04856]
[1765173574886,0.01824,91394.0,91393.0,0.02547]
[1765173575105,0.001,91394.0,91393.0,0.02547]
[1765173575291,0.01824,91394.0,91393.0,0.01011]
[1765173581141,0.05765,91394.0,91393.0,0.001]
[1765173581863,0.04041,91394.0,91393.0,0.001]
[1765173582061,0.05765,91394.0,91393.0,0.001]
[1765173582572,0.07984599,91394.0,91393.0,0.001]
[1765173583185,0.05765,91394.0,91393.0,0.001]
[1765173583484,0.07984599,91394.0,91393.0,0.001]
[1765173583631,0.05765,91394.0,91393.0,0.001]
[1765173584038,0.07984599,91394.0,91393.0,0.001]
[1765173584655,0.05765,91394.0,91393.0,0.001]
[1765173585062,0.07984599,91394.0,91393.0,0.001]
[1765173586359,0.05765,91394.0,91393.0,0.001]
[1765173586548,0.07984599,91394.0,91393.0,0.001]
[1765173589415,0.05765,91394.0,91393.0,0.001]
[1765173589614,0.07984599,91394.0,91393.0,0.001]
[1765173590169,0.05765,91394.0,91393.0,0.001]
[1765173591649,0.07984599,91394.0,91393.0,0.001]
[1765173592275,0.05765,91394.0,91393.0,0.001]
[1765173596839,0.06790912,91394.0,91393.0,0.001]
[1765173599503,0.04397912,91394.0,91393.0,0.001]
[1765173599719,0.06709912,91394.0,91393.0,0.001]
[1765173599999,0.10170511,91394.0,91393.0,0.001]
[1765173600288,0.14203211,91394.0,91393.0,0.001]
[1765173600495,0.1642281,91394.0,91393.0,0.001]
[1765173601118,0.14203211,91394.0,91393.0,0.001]
[1765173601285,0.09102211,91394.0,91393.0,0.001]
[1765173601473,0.06352299,91394.0,91393.0,0.001]
[1765173601714,0.08076299,91394.0,91393.0,0.001]
[1765173602889,0.06352299,91394.0,91393.0,0.01176]
[1765173603256,0.08076299,91394.0,91393.0,0.01176]
[1765173603669,0.12973428,91394.0,91393.0,0.001]
[1765173603881,0.11947299,91394.0,91393.0,0.001]
[1765173604022,0.12973425,91394.0,91393.0,0.001]
[1765173605266,0.12973508,91394.0,91393.0,0.001]
[1765173606248,0.10661508,91394.0,91393.0,0.001]
[1765173606453,0.09102508,91394.0,91393.0,0.001]
[1765173607015,0.10661508,91394.0,91393.0,0.001]
[1765173608686,0.07378508,91394.0,91393.0,0.02689]
[1765173608905,0.001,91394.0,91393.0,0.04963]
[1765173609110,0.01824,91394.0,91393.0,0.04963]
[1765173610344,0.01824,91394.0,91393.0,0.02689]
[1765173610906,0.001,91394.0,91393.0,0.04963]
[1765173611074,0.01824,91394.0,91393.0,0.04963]
[1765173612681,0.01824,91394.0,91393.0,0.02689]
[1765173614651,0.01824,91394.0,91393.0,0.05169]
[1765173615905,0.01824,91394.0,91393.0,0.02689]
[1765173616268,0.01824,91394.0,91393.0,0.01176]
[1765173616468,0.01824,91394.0,91393.0,0.001]
[1765173616672,0.0574,91394.0,91393.0,0.001]
[1765173616891,0.03457,91394.0,91393.0,0.001]
[1765173617476,0.01824,91394.0,91393.0,0.001]
[1765173620626,0.01824,91394.0,91393.0,0.01125]
[1765173621579,0.01824,91394.0,91393.0,0.05234]
[1765173621580,0.001,91394.0,91393.0,0.05234]
[1765173621792,0.001,91394.0,91393.0,0.07444591]
[1765173623467,0.001,91394.0,91393.0,0.09632942]
[1765173623862,0.001,91394.0,91393.0,0.07444591]
[1765173625662,0.001,91394.0,91393.0,0.07344591]
[1765173625907,0.01724,91398.0,91395.0,0.01094151]
[1765173626161,0.01724,91398.0,91397.0,0.01629]
[1765173626559,0.01724,91398.0,91397.0,0.04109]
[1765173628485,0.01724,91398.0,91397.0,0.04309]
[1765173630190,0.01724,91398.0,91397.0,0.002]
[1765173630394,0.27522316,91398.0,91397.0,0.002]
[1765173630805,0.25239316,91398.0,91397.0,0.002]
[1765173631257,0.01094151,91395.0,91390.0,0.02170211]
[1765173632087,0.01094151,91395.0,91390.0,0.24054434]
[1765173632493,0.01094163,91394.0,91391.0,0.01094199]
[1765173633117,0.01094151,91395.0,91391.0,0.22978007]
[1765173633490,0.01094163,91394.0,91390.0,0.02370211]
[1765173633973,0.01094163,91394.0,91390.0,0.02170211]
[1765173634136,0.01094163,91394.0,91391.0,0.01394199]
[1765173634537,0.01094163,91394.0,91391.0,0.01094199]
[1765173635095,0.01094175,91393.0,91390.0,0.01076]
[1765173635385,0.01094175,91393.0,91389.0,0.01105739]
[1765173635386,0.23516992,91391.0,91389.0,0.00011516]
[1765173637474,0.23516992,91391.0,91389.0,0.00211516]
[1765173637690,0.23516992,91391.0,91389.0,0.00011516]
[1765173637886,0.23616992,91391.0,91389.0,0.00011516]
[1765173638352,0.23516992,91391.0,91389.0,0.00011516]
[1765173638802,0.23616992,91391.0,91389.0,0.00011516]
[1765173639333,0.21983992,91391.0,91389.0,0.00011516]
[1765173641661,0.001,91391.0,91389.0,0.00011516]
[1765173642956,0.21984159,91391.0,91389.0,0.00011516]
[1765173645074,0.23138159,91391.0,91389.0,0.00011516]
[1765173645271,0.02282,91390.0,91389.0,0.00011516]
[1765173645480,0.23138159,91391.0,91389.0,0.00011516]
[1765173646447,0.23038159,91391.0,91389.0,0.00011516]
[1765173646921,0.001,91390.0,91389.0,0.00011516]
[1765173647302,0.23038159,91391.0,91389.0,0.00011516]
[1765173647698,0.23138159,91391.0,91389.0,0.00011516]
[1765173650349,0.001,91391.0,91390.0,0.01592]
[1765173651273,0.01094175,91393.0,91390.0,0.05147211]
[1765173651549,0.01824,91391.0,91390.0,0.03555211]
[1765173651845,0.01824,91391.0,91390.0,0.01094211]
[1765173652052,0.01824,91391.0,91390.0,0.02686211]
[1765173652214,0.01824,91391.0,91390.0,0.05147211]
[1765173652614,0.001,91391.0,91390.0,0.05147211]
[1765173652834,0.01094115,91398.0,91395.0,0.01094151]
[1765173653056,0.21881993,91400.0,91396.0,0.01592]
[1765173653057,0.01724,91397.0,91396.0,0.01592]
[1765173653265,0.01724,91397.0,91396.0,0.02617]
[1765173655155,0.01824,91397.0,91396.0,0.02617]
[1765173655356,0.01824,91397.0,91396.0,0.05078]
[1765173655878,0.01824,91397.0,91396.0,0.02617]
[1765173658998,0.01824,91397.0,91396.0,0.01025]
[1765173659281,0.001,91397.0,91396.0,0.01025]
[1765173659431,0.01824,91397.0,91396.0,0.01025]
[1765173661385,0.01824,91397.0,91396.0,0.02567]
[1765173662011,0.01824,91397.0,91396.0,0.01025]
[1765173663118,0.001,91397.0,91396.0,0.01025]
[1765173663349,0.01824,91397.0,91396.0,0.01025]
[1765173666463,0.01094151,91395.0,91392.0,0.01094187]
[1765173666912,0.01094151,91395.0,91392.0,0.22977911]
[1765173667131,0.01824,91397.0,91394.0,0.01094163]
[1765173667343,0.01724,91397.0,91394.0,0.01094163]
[1765173667523,0.001,91395.0,91394.0,0.01094163]
[1765173668816,0.01724,91397.0,91394.0,0.01094163]
[1765173669237,0.01824,91397.0,91394.0,0.01094163]
[1765173669443,0.24800872,91397.0,91393.0,0.02119175]
[1765173669664,0.02918127,91397.0,91394.0,0.01094163]
[1765173669869,0.01824,91397.0,91394.0,0.2297726]
[1765173670072,0.01824,91397.0,91395.0,0.21882827]
[1765173670362,0.01724,91397.0,91395.0,0.21882827]
[1765173670593,0.01824,91397.0,91395.0,0.21882827]
[1765173671802,0.01724,91397.0,91395.0,0.21882827]
[1765173672015,0.01824,91397.0,91395.0,0.21882827]
[1765173675071,0.001,91397.0,91396.0,0.01656]
[1765173675266,0.01824,91397.0,91396.0,0.0403]
[1765173675880,0.01724,91397.0,91396.0,0.0403]
[1765173676008,0.06252299,91409.0,91396.0,0.0403]
[1765173676009,0.22972612,91414.0,91411.0,0.0109396]
[1765173676209,0.027496,91413.0,91411.0,0.0109396]
[1765173676438,0.027496,91413.0,91412.0,0.01034]
[1765173676439,0.01724,91413.0,91412.0,0.01034]
[1765173678030,0.01724,91413.0,91412.0,0.05064]
[1765173678455,0.01724,91413.0,91412.0,0.0269]
[1765173678653,0.02024,91413.0,91412.0,0.0269]
[1765173678858,0.02224,91413.0,91412.0,0.0269]
[1765173679472,0.02207448,91413.0,91412.0,0.0269]
[1765173679867,0.02207448,91413.0,91412.0,0.05064]
[1765173680513,0.005,91413.0,91412.0,0.05064]
[1765173680730,0.005,91413.0,91412.0,0.07274591]
[1765173680930,0.005,91413.0,91412.0,0.41782039]
[1765173681516,0.002,91413.0,91412.0,0.41782039]
[1765173681918,0.00122117,91417.0,91416.0,0.02210591]
[1765173682085,0.00122117,91417.0,91416.0,0.04905591]
[1765173682297,0.00122117,91417.0,91416.0,0.07279591]
[1765173683723,0.00122117,91417.0,91416.0,0.39579591]
[1765173684332,0.00122117,91417.0,91416.0,0.43473801]
[1765173684534,0.00122117,91417.0,91416.0,0.43773801]
[1765173684734,0.00122117,91417.0,91416.0,0.39579591]
[1765173685138,0.00122117,91417.0,91416.0,0.39879591]
[1765173685360,0.00122117,91417.0,91416.0,0.39579591]
[1765173685872,0.00122117,91417.0,91416.0,0.39679591]
[1765173686073,0.00122117,91417.0,91416.0,0.40079591]
[1765173686480,0.02735724,91448.0,91444.0,0.01093565]
[1765173686481,0.2460611,91448.0,91444.0,0.01093565]
[1765173686682,0.01093541,91446.0,91445.0,0.01656]
[1765173686899,0.01093529,91447.0,91446.0,0.01035]
[1765173687301,0.23051937,91447.0,91446.0,0.01035]
[1765173688134,0.21872026,91441.0,91440.0,0.03409]
[1765173688328,0.22965348,91443.0,91441.0,0.01035]
[1765173689649,0.23565348,91443.0,91441.0,0.01035]
[1765173691163,0.23865348,91443.0,91441.0,0.01035]
[1765173694201,0.21871787,91442.0,91441.0,0.01035]
[1765173694622,0.21944972,91442.0,91441.0,0.01035]
[1765173694910,0.00073185,91442.0,91441.0,0.01035]
[1765173695326,0.00373185,91442.0,91441.0,0.01035]
[1765173695734,0.22744972,91442.0,91441.0,0.01035]
[1765173696779,0.00873185,91442.0,91441.0,0.05065]
[1765173696976,0.00873185,91442.0,91440.0,0.01035]
[1765173697182,0.21942285,91441.0,91440.0,0.01035]
[1765173697391,0.21872744,91438.0,91437.0,0.01093637]
[1765173697652,0.22966381,91438.0,91433.0,0.01093697]
[1765173697794,0.22966381,91438.0,91435.0,0.04748]
[1765173698822,0.01093613,91440.0,91435.0,0.05841673]
[1765173699023,0.004,91438.0,91435.0,0.03467673]
[1765173699231,0.23366383,91438.0,91435.0,0.02374]
[1765173699602,0.23366383,91438.0,91434.0,0.02128685]
[1765173699816,0.004,91438.0,91435.0,0.01093673]
[1765173700012,0.004,91438.0,91437.0,0.01656]
[1765173700013,0.007,91438.0,91437.0,0.01656]
[1765173700226,0.003,91438.0,91437.0,0.01656]
[1765173700422,0.01093601,91441.0,91437.0,0.26996445]
[1765173700620,0.01093637,91438.0,91434.0,0.05412895]
[1765173700825,0.01393637,91438.0,91434.0,0.2728659]
[1765173701101,0.01793637,91438.0,91434.0,0.2966059]
[1765173701323,0.01493637,91438.0,91434.0,0.2966059]
[1765173701522,0.01093637,91438.0,91434.0,0.2966059]
[1765173701728,0.01493637,91438.0,91434.0,0.2966059]
[1765173701924,0.01493637,91438.0,91435.0,0.01093673]
[1765173702147,0.004,91438.0,91435.0,0.01093673]
[1765173702345,0.004,91438.0,91434.0,0.0328421]
[1765173702346,0.21873259,91436.0,91434.0,0.0328421]
[1765173702590,0.22967135,91435.0,91430.0,0.02128732]
[1765173702795,0.22967135,91435.0,91432.0,0.03284257]
[1765173703158,0.2187394,91433.0,91432.0,0.03284257]
[1765173703355,0.22967135,91435.0,91432.0,0.03284257]
[1765173704282,0.002,91433.0,91432.0,0.03284257]
[1765173704705,0.01093673,91435.0,91432.0,0.04377965]
[1765173705033,0.01293673,91435.0,91432.0,0.04377965]
[1765173705234,0.0109372,91431.0,91428.0,0.01093756]
[1765173705459,0.0109372,91431.0,91416.0,0.21877881]
[1765173705460,0.21877027,91421.0,91416.0,0.21877881]
[1765173705720,0.01093828,91422.0,91417.0,0.21877549]
[1765173705872,0.01093828,91422.0,91417.0,0.26256154]
[1765173706051,0.22970623,91422.0,91417.0,0.04378605]
[1765173706775,0.22970623,91422.0,91417.0,0.01093888]
[1765173707182,0.21877804,91417.0,91415.0,0.03284717]
[1765173707390,0.21877804,91417.0,91414.0,0.01035]
[1765173707391,0.22971692,91417.0,91414.0,0.01035]
[1765173707600,0.23010721,91417.0,91414.0,0.01035]
[1765173707915,0.00039029,91417.0,91414.0,0.02128924]
[1765173708553,0.00039029,91417.0,91414.0,0.02528924]
[1765173709539,0.00039029,91417.0,91414.0,0.02628924]
[1765173710164,0.01132917,91417.0,91414.0,0.02628924]
[1765173711716,0.01132917,91417.0,91414.0,0.01535]
[1765173712129,0.00039029,91417.0,91414.0,0.26941234]
[1765173712331,0.00039029,91417.0,91416.0,0.01551]
[1765173713025,0.00039029,91417.0,91416.0,0.02586]
[1765173713489,0.00039029,91417.0,91416.0,0.02686]
[1765173713989,0.00039029,91417.0,91416.0,0.0512]
[1765173714203,0.00039029,91417.0,91416.0,0.0552]
[1765173714342,0.00039029,91417.0,91416.0,0.27398008]
[1765173716897,0.00039029,91417.0,91416.0,0.28515225]
[1765173719805,0.00039029,91417.0,91416.0,0.30725816]
[1765173720007,0.00039029,91417.0,91416.0,0.63025816]
[1765173720230,0.00039029,91417.0,91416.0,0.66920026]
[1765173720755,0.00039029,91417.0,91416.0,0.64709435]
[1765173721139,0.00039029,91417.0,91416.0,0.63592218]
[1765173721342,0.00039029,91417.0,91416.0,0.33502809]
[1765173721749,0.00039029,91417.0,91416.0,0.33402809]
[1765173722160,0.00039029,91417.0,91416.0,0.33502809]
[1765173722564,0.00039029,91417.0,91416.0,0.33402809]
[1765173722966,0.00039029,91417.0,91416.0,0.33502809]
[1765173723137,0.00039029,91417.0,91416.0,0.29608599]
[1765173723737,0.00039029,91417.0,91416.0,0.31301096]
[1765173726299,0.00039029,91417.0,91416.0,0.29608599]
[1765173730210,0.00039029,91417.0,91416.0,0.61908599]
[1765173730385,0.00039029,91417.0,91416.0,0.59698008]
[1765173730588,0.00039029,91417.0,91416.0,0.63604495]
[1765173731012,0.00039029,91417.0,91416.0,0.24964008]
[1765173731351,0.00039029,91417.0,91416.0,0.27220008]
[1765173731759,0.00039029,91417.0,91416.0,0.27120008]
[1765173733571,0.00039029,91417.0,91416.0,0.26720008]
[1765173733796,0.00039029,91417.0,91416.0,0.27020008]
[1765173739214,0.00039029,91417.0,91416.0,0.05142]
[1765173739421,0.00039029,91417.0,91416.0,0.01335]
[1765173739629,0.25810797,91417.0,91416.0,0.003]
[1765173740152,0.28030396,91417.0,91416.0,0.003]
[1765173740379,0.28130396,91417.0,91416.0,0.003]
[1765173740579,0.01094044,91404.0,91401.0,0.02129079]
[1765173740787,0.02736251,91404.0,91401.0,0.02129079]
[1765173740973,0.02736251,91404.0,91401.0,0.01035]
[1765173741141,0.01642207,91404.0,91403.0,0.01513]
[1765173741958,0.01642207,91404.0,91403.0,0.03992]
[1765173742883,0.01642207,91404.0,91403.0,0.04492]
[1765173743836,0.01642207,91404.0,91403.0,0.02113]
[1765173744044,0.01642207,91404.0,91403.0,0.23994119]
[1765173744237,0.01642207,91404.0,91403.0,0.02113]
[1765173745905,0.01642207,91404.0,91403.0,0.04592]
[1765173746613,0.01642207,91405.0,91403.0,0.04592]
[1765173746811,0.01642207,91405.0,91404.0,0.02479]
[1765173747036,0.01642207,91405.0,91404.0,0.03992]
[1765173748513,0.01642207,91405.0,91404.0,0.04492]
[1765173749231,0.01642207,91405.0,91404.0,0.04592]
[1765173752925,0.22972939,91412.0,91405.0,0.22974673]
[1765173753095,0.22972939,91412.0,91411.0,0.02548]
[1765173753761,0.22972939,91412.0,91411.0,0.05027]
[1765173753966,0.01642207,91420.0,91414.0,0.21878486]
[1765173754171,0.01642207,91420.0,91416.0,0.24426008]
[1765173754577,0.01642207,91420.0,91416.0,0.26905008]
[1765173755970,0.00139029,91417.0,91416.0,0.26905008]
[1765173756392,0.00039029,91417.0,91416.0,0.27005008]